[Event "Maria Albulet Memorial 2018"]
[Site "Braila"]
[Date "2018.11.04"]
[Round "3"]
[White "Ciolacu, Alessia-Mihaela"]
[Black "Hrib, Andrada-Ioana"]
[Result "1-0"]
[ECO "D53"]
[WhiteElo "1972"]
[BlackElo "1770"]
[Annotator "NA RC"]
[PlyCount "126"]
[EventDate "2018.11.03"]
[EventType "swiss"]
[EventCountry "ROU"]
[SourceTitle "playchess.com"]
[Source "ChessBase"]
[SourceQuality "1"]
[TimeControl "40/5400+30:900+30"]

1. d4 {[%emt 0:00:00]} d5 {[%emt 0:00:00]} 2. c4 {[%emt 0:00:00]} e6 {[%emt 0:00:00]} 3. Nc3 {[%emt 0:00:11]} Nf6 {[%emt 0:00:00]} 4. Bg5 {[%emt 0:00:14]} Be7 {[%emt 0:00:00]} 5. e3 {[%emt 0:00:20]} h6 {[%emt 0:00:00]} 6. Bxf6 {[%emt 0:00:25]} Bxf6 {[%emt 0:00:15]} 7. Nf3 {[%emt 0:00:07]} O-O {[%emt 0:01:13]} 8. Rc1 {[%emt 0:00:18]} c6 {[%emt 0:01:52]} 9. Bd3 {[%emt 0:00:36]} Nd7 {[%emt 0:02:44]} 10. O-O {[%emt 0:00:31]} g6 {[%emt 0:11:32]} 11. Qc2 {[%emt 0:02:47]} Bg7 {[%emt 0:02:28]} 12. Rfd1 {[%emt 0:01:39]} Qe7 {[%emt 0:05:44]} 13. a3 {[%emt 0:06:49]} dxc4 {[%emt 0:14:38]} 14. Bxc4 {[%emt 0:00:07]} Nb6 {[%emt 0:00:04]} 15. Ba2 {[%emt 0:00:56]} Rd8 {[%emt 0:01:44]} 16. Ne4 {[%emt 0:02:06]} Nd5 {[%emt 0:03:46]} 17. Nc5 {[%emt 0:01:34]} b6 {[%emt 0:01:21]} 18. Nd3 {[%emt 0:03:08]} Bb7 {[%emt 0:01:18]} 19. Nde5 {[%emt 0:01:31]} Rdc8 {[%emt 0:02:31]} 20. Qa4 {[%emt 0:09:15]} c5 {[%emt 0:09:22]} 21. dxc5 {[%emt 0:11:39]} bxc5 {[%emt 0:00:01]} 22. Rd2 {[%emt 0:05:49]} Nb6 {[%emt 0:10:04]} 23. Qc2 {[%emt 0:03:22]} Rc7 {[%emt 0:12:17]} 24. Rcd1 {[%emt 0:01:47]} Nd5 {[%emt 0:01:37]} 25. Bc4 {[%emt 0:09:22]} Rb8 {[%emt 0:12:11]} 26. Qd3 {[%emt 0:12:56]} Ba8 {[%emt 0:01:19]} 27. Qe2 {[%emt 0:02:22]} Kh7 {[%emt 0:01:26]} 28. Bd3 {[%emt 0:04:43]} Rbc8 {[%emt 0:01:34]} 29. Rc2 {[%emt 0:02:54]} Bb7 {[%emt 0:02:36]} 30. Ba6 {[%emt 0:00:50]} Bxa6 {[%emt 0:00:45]} 31. Qxa6 {[%emt 0:00:02]} Bxe5 {[%emt 0:00:24]} 32. Nxe5 {[%emt 0:00:06]} Qf6 {[%emt 0:00:38]} 33. Nc4 {[%emt 0:01:57]} Qe7 {[%emt 0:00:15]} 34. Rcd2 {[%emt 0:01:51]} Rc6 {[%emt 0:00:29]} 35. Qb5 {[%emt 0:00:39]} R6c7 {[%emt 0:00:28]} 36. e4 {[%emt 0:00:30]} Nf6 {[%emt 0:00:01]} 37. Nd6 {[%emt 0:01:52]} Rg8 {[%emt 0:00:33]} 38. e5 {[%emt 0:02:46]} Nd5 {[%emt 0:00:01]} 39. Ne4 {[%emt 0:02:12]} Rgc8 {[%emt 0:01:12]} 40. Qe2 {[%emt 0:00:00]} Rb8 {[%emt 0:00:00]} 41. Rxd5 {[%emt 0:10:22]} exd5 {[%emt 0:00:55]} 42. Nf6+ {[%emt 0:00:11]} Kg7 {[%emt 0:00:34]} 43. Nxd5 {[%emt 0:00:26]} Qd8 {[%emt 0:02:55]} 44. e6 {[%emt 0:02:22]} Rcc8 {[%emt 0:04:22]} 45. Qe5+ {[%emt 0:01:52]} f6 {[%emt 0:00:12]} 46. Qc3 {[%emt 0:00:45]} Rc6 {[%emt 0:02:56]} 47. Ne3 {[%emt 0:03:09]} Rd6 {[%emt 0:00:27]} 48. Nf5+ {[%emt 0:00:24]} gxf5 {[%emt 0:01:13]} 49. Qg3+ {[%emt 0:00:05]} Kf8 {[%emt 0:00:35]} 50. Rxd6 {[%emt 0:00:34]} Qe7 {[%emt 0:03:26]} 51. Qf4 {[%emt 0:03:37]} Rd8 {[%emt 0:02:30]} 52. Qxh6+ {[%emt 0:01:25]} Kg8 {[%emt 0:00:00]} 53. Qg6+ {[%emt 0:00:11]} Kh8 {[%emt 0:01:41]} 54. Qh5+ {[%emt 0:00:11]} Kg7 {[%emt 0:00:37]} 55. Rxd8 {[%emt 0:00:26]} Qxd8 {[%emt 0:00:01]} 56. Qf7+ {[%emt 0:00:07]} Kh6 {[%emt 0:00:20]} 57. Qd7 {[%emt 0:00:05]} Qa5 {[%emt 0:00:21]} 58. Kf1 {[%emt 0:02:11]} Qa6+ {[%emt 0:00:06]} 59. Ke1 {[%emt 0:00:04]} Qc4 {[%emt 0:00:33]} 60. e7 {[%emt 0:00:36]} Qe4+ {[%emt 0:00:23]} 61. Kd2 {[%emt 0:00:25]} Qf4+ {[%emt 0:00:08]} 62. Kc2 {[%emt 0:00:26]} Qe4+ {[%emt 0:00:10]} 63. Kc3 {[%emt 0:00:51]} Qe5+ {[%emt 0:00:13]} 1-0

[Event "Maria Albulet Memorial 2018"]
[Site "Braila"]
[Date "2018.11.04"]
[Round "3"]
[White "Nistor, Valentina"]
[Black "Maria, Lia-Alexandra"]
[Result "1-0"]
[ECO "B41"]
[WhiteElo "1881"]
[BlackElo "1479"]
[Annotator "NA RC"]
[PlyCount "59"]
[EventDate "2018.11.03"]
[EventType "swiss"]
[EventCountry "ROU"]
[SourceTitle "playchess.com"]
[Source "ChessBase"]
[SourceQuality "1"]
[TimeControl "40/5400+30:900+30"]

1. e4 {[%emt 0:00:00]} c5 {[%emt 0:00:00]} 2. Nf3 {[%emt 0:00:00]} e6 {[%emt 0:00:00]} 3. d4 {[%emt 0:00:00]} cxd4 {[%emt 0:00:00]} 4. Nxd4 {[%emt 0:00:00]} a6 {[%emt 0:00:00]} 5. c4 {[%emt 0:00:00]} Nf6 {[%emt 0:00:30]} 6. Nc3 {[%emt 0:00:26]} Qc7 {[%emt 0:00:08]} 7. a3 {[%emt 0:00:18]} d6 {[%emt 0:00:09]} 8. Be3 {[%emt 0:00:49]} Nbd7 {[%emt 0:00:07]} 9. Be2 {[%emt 0:00:34]} Be7 {[%emt 0:00:07]} 10. O-O {[%emt 0:00:16]} O-O {[%emt 0:00:03]} 11. Rc1 {[%emt 0:01:09]} b6 {[%emt 0:00:03]} 12. f3 {[%emt 0:01:57]} Bb7 {[%emt 0:00:18]} 13. b4 {[%emt 0:01:04]} Rac8 {[%emt 0:00:51]} 14. Qe1 {[%emt 0:03:09]} Qb8 {[%emt 0:01:37]} 15. Qg3 {[%emt 0:03:24]} Rfe8 {[%emt 0:01:34]} 16. Rfd1 {[%emt 0:08:10]} Nf8 {[%emt 0:01:47]} 17. Bd3 {[%emt 0:01:22]} Bd8 {[%emt 0:02:02]} 18. f4 {[%emt 0:02:21]} Bc7 {[%emt 0:01:52]} 19. Rf1 {[%emt 0:15:06]} Qa8 {[%emt 0:04:07]} 20. Qf3 {[%emt 0:06:29]} Ng6 {[%emt 0:06:51]} 21. Rce1 {[%emt 0:04:16]} e5 {[%emt 0:04:24]} 22. Nf5 {[%emt 0:04:14]} exf4 {[%emt 0:01:22]} 23. Bxf4 {[%emt 0:01:30]} Nxf4 {[%emt 0:02:56]} 24. Qxf4 {[%emt 0:00:07]} Kh8 {[%emt 0:01:31]} 25. Nxg7 {[%emt 0:01:15]} Nxe4 {[%emt 0:03:25]} 26. Nxe8 {[%emt 0:02:11]} Rxe8 {[%emt 0:00:31]} 27. Nxe4 {[%emt 0:00:13]} d5 {[%emt 0:01:09]} 28. Qf6+ {[%emt 0:00:28]} Kg8 {[%emt 0:00:18]} 29. Qxf7+ {[%emt 0:00:14]} Kh8 {[%emt 0:00:06]} 30. Nf6 {[%emt 0:01:43]} 1-0

[Event "Maria Albulet Memorial 2018"]
[Site "Braila"]
[Date "2018.11.04"]
[Round "3"]
[White "Otetea, Ioana"]
[Black "Bucur, Denisa-Andreea"]
[Result "0-1"]
[ECO "B43"]
[WhiteElo "1602"]
[BlackElo "2012"]
[Annotator "NA RC"]
[PlyCount "86"]
[EventDate "2018.11.03"]
[EventType "swiss"]
[EventCountry "ROU"]
[SourceTitle "playchess.com"]
[Source "ChessBase"]
[SourceQuality "1"]
[TimeControl "40/5400+30:900+30"]

1. e4 {[%emt 0:00:00]} c5 {[%emt 0:00:00]} 2. Nf3 {[%emt 0:00:03]} e6 {[%emt 0:00:00]} 3. d4 cxd4 {[%emt 0:00:00]} 4. Nxd4 {[%emt 0:00:00]} a6 {[%emt 0:00:00]} 5. Nc3 {[%emt 0:00:01]} Qc7 {[%emt 0:00:07]} 6. g3 {[%emt 0:00:30]} Nf6 {[%emt 0:00:22]} 7. Bg2 {[%emt 0:00:10]} d6 {[%emt 0:00:10]} 8. a4 {[%emt 0:00:23]} Nc6 9. O-O {[%emt 0:00:21]} Be7 {[%emt 0:01:16]} 10. Kh1 {[%emt 0:00:43]} O-O {[%emt 0:00:27]} 11. f4 {[%emt 0:00:33]} Rb8 {[%emt 0:02:29]} 12. Bf3 {[%emt 0:09:20]} Re8 {[%emt 0:03:31]} 13. g4 {[%emt 0:07:26]} Nd7 {[%emt 0:04:47]} 14. g5 {[%emt 0:05:36]} Bf8 {[%emt 0:06:02]} 15. f5 {[%emt 0:04:39]} Nxd4 {[%emt 0:03:05]} 16. Qxd4 {[%emt 0:00:42]} Ne5 {[%emt 0:00:11]} 17. f6 {[%emt 0:04:06]} Nxf3 {[%emt 0:07:49]} 18. Rxf3 {[%emt 0:00:14]} g6 {[%emt 0:00:39]} 19. Qf2 {[%emt 0:03:19]} b5 {[%emt 0:01:17]} 20. Qh4 {[%emt 0:13:31]} b4 {[%emt 0:00:58]} 21. Rh3 {[%emt 0:11:30]} h5 {[%emt 0:00:11]} 22. gxh6 {[%emt 0:04:03]} Kh7 {[%emt 0:05:01]} 23. Ne2 {[%emt 0:08:26]} Qxc2 {[%emt 0:00:50]} 24. Ng1 {[%emt 0:01:29]} Bb7 {[%emt 0:00:36]} 25. Re3 {[%emt 0:00:21]} Rbc8 {[%emt 0:06:53]} 26. Re2 {[%emt 0:04:57]} Qd3 {[%emt 0:04:10]} 27. Re3 {[%emt 0:03:04]} Qd4 {[%emt 0:00:50]} 28. Nh3 {[%emt 0:05:16]} Kh8 {[%emt 0:07:54]} 29. Re1 {[%emt 0:04:20]} d5 {[%emt 0:03:08]} 30. Be3 {[%emt 0:06:52]} Qxb2 {[%emt 0:03:40]} 31. Ng5 {[%emt 0:01:23]} Rc7 {[%emt 0:00:26]} 32. Bb6 {[%emt 0:01:18]} Rd7 {[%emt 0:00:53]} 33. Rab1 {[%emt 0:00:36]} Qc2 {[%emt 0:01:10]} 34. Qg4 {[%emt 0:01:05]} dxe4 {[%emt 0:01:11]} 35. Nxe4 {[%emt 0:00:35]} Rc8 {[%emt 0:04:18]} 36. Kg1 {[%emt 0:00:31]} Rc4 {[%emt 0:03:41]} 37. Rbc1 {[%emt 0:00:33]} Qd3 {[%emt 0:00:11]} 38. Rxc4 {[%emt 0:00:17]} Qxc4 {[%emt 0:00:03]} 39. Bf2 {[%emt 0:00:39]} b3 {[%emt 0:00:56]} 40. Qe2 {[%emt 0:00:00]} Qxe4 {[%emt 0:00:00]} 41. Qxe4 {[%emt 0:00:46]} Bxe4 {[%emt 0:00:51]} 42. Rxe4 {[%emt 0:00:11]} Rd1+ {[%emt 0:00:16]} 43. Kg2 {[%emt 0:01:01]} b2 {[%emt 0:00:09]} 0-1